bitfinex/quotes_ETHUSD_20251226
["timestamp","ask_amount","ask_price","bid_price","bid_amount"]
[1766763614641,0.888,2914.1,2913.5,0.03432297]
[1766763615144,0.888,2914.1,2913.5,0.98062297]
[1766763615538,0.888,2914.1,2913.3,0.002]
[1766763615539,0.94224948,2914.0,2913.3,0.002]
[1766763615921,1.12527443,2914.0,2913.3,0.002]
[1766763616251,1.12527443,2914.0,2912.9,0.03433004]
[1766763616434,1.12527443,2914.0,2912.9,0.98063004]
[1766763616760,1.12527443,2914.0,2912.7,0.002]
[1766763617055,1.12527443,2914.0,2912.7,3.43515719]
[1766763617265,0.9079,2913.8,2912.8,3.43311736]
[1766763617552,0.20132744,2913.9,2912.9,0.9463]
[1766763617553,0.03434948,2913.7,2912.9,0.9463]
[1766763617757,0.03434948,2913.8,2913.1,0.9463]
[1766763617915,0.888,2913.9,2913.2,0.81896681]
[1766763618122,0.03434948,2913.8,2913.2,0.81896681]
[1766763618539,0.888,2913.9,2913.2,0.81896681]
[1766763618745,0.03434948,2913.8,2913.2,0.81896681]
[1766763618955,0.03434948,2913.8,2913.3,0.17652668]
[1766763619152,0.03434948,2913.8,2913.4,0.03432415]
[1766763619360,0.9079,2914.7,2913.5,0.9463]
[1766763619663,0.05466535,2915.6,2913.9,0.9463]
[1766763619954,0.05466535,2915.6,2913.8,10.29583359]
[1766763619955,0.92234948,2915.5,2914.2,0.9463]
[1766763620158,0.92234948,2915.5,2914.4,0.9463]
[1766763620339,0.92234948,2915.5,2914.1,5.54699129]
[1766763620340,0.03434948,2915.5,2914.5,0.9806112]
[1766763620528,0.05466535,2916.0,2914.6,0.98061002]
[1766763620529,0.888,2915.6,2914.6,0.98061002]
[1766763620729,0.888,2915.6,2914.6,0.03431002]
[1766763620730,0.9079,2915.4,2914.6,0.03431002]
[1766763620930,0.03434948,2915.3,2914.3,0.03431355]
[1766763621853,0.03434948,2915.3,2914.3,3.43135572]
[1766763622065,0.001,2914.4,2914.3,4.24657868]
[1766763622233,0.05466535,2916.9,2914.4,0.9463]
[1766763622434,0.05466535,2916.9,2914.3,14.54064584]
[1766763622435,0.001,2915.6,2914.7,0.9463]
[1766763622638,0.001,2916.8,2915.5,0.9463]
[1766763622946,0.001,2916.8,2915.7,0.9463]
[1766763623141,0.001,2916.8,2915.2,0.9463]
[1766763623142,0.9079,2916.7,2915.2,0.9463]
[1766763623352,0.9079,2916.7,2915.3,0.03430178]
[1766763623564,0.9079,2916.7,2915.4,0.9463]
[1766763623748,0.9079,2916.7,2915.5,0.98059943]
[1766763623947,0.9079,2916.7,2915.5,7.84047162]
[1766763624265,0.9079,2916.7,2915.5,7.80617219]
[1766763624430,0.9079,2916.7,2915.0,0.9463]
[1766763624631,0.9079,2916.7,2915.1,0.03430414]
[1766763625130,0.9079,2916.7,2915.2,3.43022315]
[1766763625353,0.9079,2916.7,2915.3,3.46447344]
[1766763625736,0.9079,2916.7,2915.3,0.03430178]
[1766763625937,0.9079,2916.7,2915.1,0.03430414]
[1766763626487,0.9079,2916.7,2915.3,3.43017838]
[1766763626788,0.9079,2916.7,2915.4,0.98060061]
[1766763626968,1.7959,2916.6,2915.4,0.98060061]
[1766763627174,0.9079,2916.5,2915.2,3.43019114]
[1766763627686,0.9079,2916.5,2915.3,3.43016598]
[1766763627871,0.9079,2916.5,2915.2,0.9463]
[1766763628058,0.17959,2916.4,2915.3,0.03430178]
[1766763628254,0.17959,2916.4,2915.4,0.9463]
[1766763628455,0.888,2916.3,2915.0,3.43050627]
[1766763628687,0.9079,2916.2,2915.1,0.03430414]
[1766763628887,0.9079,2916.2,2915.1,0.98060414]
[1766763629662,0.9079,2916.2,2915.1,0.9463]
[1766763629864,0.17959,2916.1,2915.2,4.41089933]
[1766763630196,0.17959,2916.1,2914.3,0.78090941]
[1766763630197,0.9079,2916.0,2914.3,0.78090941]
[1766763630397,0.9079,2916.0,2914.4,0.98061237]
[1766763630890,0.96256535,2916.0,2914.4,0.98061237]
[1766763631094,0.05466535,2915.8,2914.3,3.43128165]
[1766763631301,0.9079,2915.6,2914.4,3.46554909]
[1766763631477,1.08749,2915.5,2914.4,0.03431237]
[1766763631665,0.9079,2915.5,2914.4,3.4655024]
[1766763632288,0.9079,2915.5,2914.4,0.03431237]
[1766763632779,0.9079,2915.5,2914.4,3.43121385]
[1766763633098,0.9079,2915.5,2914.5,0.0343112]
[1766763633296,0.9079,2915.5,2914.4,3.43121963]
[1766763633466,0.9079,2915.5,2914.5,0.0343112]
[1766763634896,0.9079,2915.5,2914.5,3.46539812]
[1766763635583,0.9079,2915.5,2914.5,4.41169812]
[1766763636511,0.9079,2915.5,2914.5,0.9806112]
[1766763637022,0.9079,2915.5,2914.5,3.46535028]
[1766763637217,0.9079,2915.9,2914.6,0.9463]
[1766763637433,0.9079,2916.4,2915.0,0.9463]
[1766763637718,1.85156535,2916.8,2915.2,0.9463]
[1766763637883,1.85156535,2916.8,2915.4,0.9463]
[1766763637884,0.9089,2916.7,2915.4,0.9463]
[1766763638084,0.9089,2916.7,2915.5,0.98059943]
[1766763638307,0.18525654,2916.6,2915.5,0.98059943]
[1766763638630,0.18525654,2916.6,2915.5,4.4105069]
[1766763638820,0.18525654,2916.6,2915.5,0.98059943]
[1766763638979,0.18525654,2916.6,2914.2,3.486128]
[1766763638980,1.09315654,2916.6,2915.1,3.43035773]
[1766763639181,1.09315654,2916.6,2915.1,4.32635773]
[1766763639381,1.09315654,2916.6,2915.1,4.32835773]
[1766763639576,1.09315654,2916.6,2915.2,3.43026645]
[1766763639777,1.09315654,2916.6,2915.3,0.03430178]
[1766763639983,1.09315654,2916.6,2915.1,0.002]
[1766763640307,1.09315654,2916.6,2915.4,0.9463]
[1766763640308,0.9079,2916.4,2915.4,0.9463]
[1766763640510,1.09315654,2916.6,2915.4,4.37633196]
[1766763640898,1.09315654,2916.6,2915.4,0.9463]
[1766763641100,1.09315654,2916.6,2915.5,0.98059943]
[1766763641284,1.09315654,2916.6,2915.5,1.42166249]
[1766763641491,1.09315654,2916.6,2915.5,0.98059943]
[1766763641686,1.09315654,2916.6,2915.1,0.9483]
[1766763641886,0.9079,2916.5,2915.2,0.03430296]
[1766763642087,0.9079,2916.5,2915.1,0.03630414]
[1766763642322,0.9079,2916.3,2915.1,0.03630414]
[1766763642511,0.9079,2916.1,2914.9,0.03430649]
[1766763642704,0.9079,2915.9,2914.5,0.0343112]
[1766763642920,0.9079,2915.9,2914.6,3.43090707]
[1766763643219,0.9079,2915.9,2914.2,6.49329129]
[1766763643397,0.9079,2915.9,2914.3,0.03431355]
[1766763643602,0.9079,2915.9,2914.6,3.4310015]
[1766763643802,0.9079,2915.9,2914.7,0.03430884]
[1766763644188,0.9079,2915.9,2914.6,0.94931002]
[1766763644393,0.9079,2915.9,2914.7,0.915]
[1766763644598,1.85636535,2916.2,2914.9,0.915]
[1766763644921,0.9137,2916.1,2915.0,0.03430531]
[1766763645700,0.9137,2916.1,2915.1,0.915]
[1766763645905,0.888,2916.2,2915.3,0.915]
[1766763646110,0.888,2916.2,2915.4,0.03430061]
[1766763646516,1.8017,2916.2,2914.9,0.915]
[1766763646717,0.9137,2916.1,2915.0,3.43053173]
[1766763648026,0.9137,2916.1,2915.1,0.03430414]
[1766763648228,1.09387,2916.0,2915.0,0.002]
[1766763648434,0.9137,2916.0,2915.0,0.002]
[1766763649198,0.9137,2916.0,2915.0,0.917]
[1766763649407,0.9137,2916.0,2915.1,0.03430414]
[1766763649609,0.9137,2916.0,2915.0,0.002]
[1766763651907,1.09895654,2916.6,2915.1,0.915]
[1766763652229,0.9137,2916.5,2915.3,0.915]
[1766763652431,0.9137,2916.5,2915.4,0.03430061]
[1766763652742,0.9137,2916.5,2915.4,3.46435551]
[1766763652937,0.9137,2916.5,2915.4,0.03430061]
[1766763653130,1.11239565,2916.4,2915.4,0.03430061]
[1766763653328,0.9137,2916.4,2915.4,0.03430061]
[1766763654326,0.888,2916.6,2915.6,0.915]
[1766763654539,0.888,2916.6,2915.7,0.94929708]
[1766763654741,0.001,2916.7,2915.8,3.4295905]
[1766763654921,0.001,2916.7,2916.0,0.915]
[1766763655110,0.001,2916.7,2916.1,0.03429237]
[1766763656139,0.001,2916.5,2916.1,0.03429237]
[1766763656341,0.2,2917.5,2916.1,0.03429237]
[1766763656342,0.9147,2917.9,2916.3,0.915]
[1766763656541,0.9147,2917.9,2916.5,0.915]
[1766763656735,0.001,2917.7,2916.7,0.915]
[1766763656929,0.001,2917.7,2916.8,0.03428414]
[1766763657331,0.001,2917.7,2916.9,0.915]
[1766763657647,0.001,2917.7,2917.0,0.915]
[1766763657837,0.001,2917.7,2917.1,0.03428062]
[1766763658409,0.001,2917.7,2917.1,0.94928062]
[1766763659249,0.9137,2917.6,2916.5,0.915]
[1766763659433,0.03428062,2917.5,2916.5,4.34376566]
[1766763659630,0.03428062,2917.5,2916.7,4.34351912]
[1766763659831,0.001,2917.7,2916.8,0.03428414]
[1766763660154,0.03528062,2917.7,2916.7,0.915]
[1766763660338,0.001,2917.7,2916.8,0.03428414]
[1766763660549,0.03528062,2917.7,2916.8,0.03428414]
[1766763661045,0.9137,2917.5,2916.2,0.915]
[1766763661247,0.93084637,2917.4,2916.4,0.915]
[1766763661550,0.18445464,2917.3,2916.5,0.932145]
[1766763661716,0.0428493,2917.2,2916.5,0.932145]
[1766763662525,0.0428493,2917.2,2916.5,0.017145]
[1766763662868,0.9565493,2917.2,2916.1,0.915]
[1766763663317,0.9137,2917.0,2915.5,0.915]
[1766763663515,0.9137,2916.8,2915.7,0.915]
[1766763663747,0.0428493,2917.2,2915.9,0.915]
[1766763663962,0.0428493,2917.2,2916.1,0.915]
[1766763664128,0.0428493,2917.2,2916.2,0.01715264]
[1766763664327,0.9565493,2917.2,2916.2,0.01715264]
[1766763665848,0.9565493,2917.2,2915.6,0.915]
[1766763666031,0.9137,2917.2,2915.7,3.42970071]
[1766763666228,0.9137,2917.0,2915.6,4.3448033]
[1766763666424,0.9137,2916.8,2915.6,4.3448033]
[1766763666623,0.95655665,2916.7,2915.6,1.69268399]
[1766763666831,0.95655665,2916.7,2915.6,4.34476112]
[1766763667030,0.95655665,2916.7,2915.6,0.915]
[1766763667224,0.95655665,2916.7,2915.8,0.915]
[1766763667453,0.95655077,2917.1,2915.8,0.915]
[1766763667671,0.18445464,2917.3,2915.8,0.915]
[1766763667863,0.18445464,2917.3,2916.0,0.915]
[1766763668070,0.0428493,2917.2,2916.2,0.915]
[1766763668657,0.18445464,2917.3,2916.2,0.915]
[1766763669244,0.18445464,2917.3,2916.4,4.34383417]
[1766763669462,0.18445464,2917.3,2916.5,0.915]
[1766763669658,0.001,2917.7,2916.5,0.915]
[1766763669842,0.04384196,2917.7,2916.5,0.915]
[1766763670438,0.95754196,2917.7,2916.5,0.915]
[1766763670734,0.9147,2917.7,2916.3,3.42897369]
[1766763670952,0.9147,2917.7,2916.1,0.915]
[1766763671163,0.9147,2917.7,2916.2,3.42910839]
[1766763671330,0.9147,2917.7,2916.3,3.4290025]
[1766763672167,0.9137,2917.6,2916.0,4.3243018]
[1766763672462,0.9137,2917.4,2916.0,3.4293018]
[1766763672631,0.9137,2917.2,2916.0,4.3443018]
[1766763672835,0.95655077,2917.1,2916.0,0.915]
[1766763673036,0.95655077,2917.1,2916.0,4.34435129]
[1766763673963,0.888,2917.4,2916.0,0.915]
[1766763673964,0.9137,2916.9,2916.0,0.915]
[1766763674268,0.04285518,2916.8,2915.9,0.895]
[1766763674470,0.04285371,2916.9,2915.9,4.32440056]
[1766763674760,0.94266535,2917.4,2916.1,0.9085]
[1766763674761,1.94026535,2917.4,2916.1,0.9085]
[1766763675068,0.19402654,2917.3,2916.3,0.9085]
[1766763675234,0.04284783,2917.3,2916.4,1.8035]
[1766763675438,0.001,2917.7,2916.7,0.9085]
[1766763676536,0.04283315,2918.3,2917.4,0.9085]
[1766763676734,0.001,2918.7,2917.6,0.9085]
[1766763676966,0.001,2918.7,2917.5,0.895]
[1766763676967,0.001,2918.7,2917.8,0.9085]
[1766763677136,0.001,2918.9,2917.8,0.9085]
[1766763677644,0.001,2918.9,2917.7,0.18035]
[1766763677645,0.001,2918.9,2918.0,0.9085]
[1766763677976,0.001,2918.9,2918.2,0.9085]
[1766763679661,0.001,2918.9,2918.3,4.3351525]
[1766763680342,0.001,2918.9,2917.8,4.33565259]
[1766763680538,0.001,2918.9,2917.8,0.9085]
[1766763680769,0.001,2918.9,2918.1,3.42682103]
[1766763680971,0.001,2918.9,2918.1,3.42684788]
[1766763681171,0.001,2918.9,2918.0,0.9085]
[1766763681338,0.001,2918.9,2918.1,3.42687857]
[1766763681562,0.001,2918.9,2918.2,3.42676328]
[1766763681797,0.001,2918.9,2918.1,4.33538735]
[1766763682085,1.04142141,2919.1,2918.3,0.9085]
[1766763682086,0.001,2919.1,2918.3,0.9085]
[1766763683273,0.04382141,2919.1,2918.3,0.9085]
[1766763683474,0.001,2919.1,2918.3,0.9085]
[1766763683682,0.04382141,2919.1,2918.4,0.9085]
[1766763683992,0.001,2919.1,2918.4,0.9085]
[1766763684195,0.001,2919.1,2918.2,0.776239]
[1766763684196,0.001,2919.1,2918.2,0.895]
[1766763684677,0.001,2919.1,2918.2,4.32175306]
[1766763684878,0.04382141,2919.1,2918.2,4.32175306]
[1766763685077,0.001,2919.1,2918.3,3.42663268]
[1766763685288,0.04382141,2919.1,2918.3,3.42663268]
[1766763685485,0.001,2919.1,2918.3,3.42663268]
[1766763685808,0.04382141,2919.1,2918.5,0.9085]
[1766763685975,0.888,2919.4,2918.5,0.9085]
[1766763686468,0.888,2919.4,2918.5,0.895]
[1766763686663,1.04140968,2919.9,2918.6,0.9085]
[1766763686664,0.04380968,2919.9,2918.6,0.9085]
[1766763686879,0.04380968,2919.9,2918.8,0.9085]
[1766763687598,1.04140968,2919.9,2918.4,3.42650668]
[1766763687806,0.05466535,2919.8,2918.4,4.33500668]
[1766763687994,1.04041261,2919.7,2918.4,4.85800735]
[1766763688192,1.04041261,2919.7,2918.4,0.9085]
[1766763688573,0.9976,2919.7,2918.5,0.9085]
[1766763688894,0.001,2919.4,2918.5,0.9085]
[1766763689100,0.05466535,2919.0,2916.3,0.05466535]
[1766763689301,0.9976,2918.7,2917.6,4.33590854]
[1766763689599,0.9976,2918.7,2917.7,4.33582229]
[1766763689600,0.04282875,2918.6,2917.7,4.33582229]
[1766763689803,1.04042875,2918.6,2917.4,4.33614547]
[1766763690099,1.04042875,2918.6,2917.5,0.9085]
[1766763690301,0.887,2919.0,2917.4,4.32264547]
[1766763690302,0.04283022,2918.5,2917.7,0.9085]
[1766763690499,1.04042435,2918.9,2917.7,0.9085]
[1766763690984,0.04282581,2918.8,2917.7,0.9085]
[1766763691888,1.04042581,2918.8,2917.7,0.9085]
[1766763692094,1.04042581,2918.8,2917.7,4.33585548]
[1766763692296,1.04042581,2918.8,2917.7,1.73715578]
[1766763692805,1.04042581,2918.8,2917.7,5.16450585]
[1766763693170,1.04042581,2918.8,2917.8,0.9085]
[1766763693171,0.04282581,2918.8,2917.8,0.9085]
[1766763693500,0.04282435,2918.9,2917.8,0.9085]
[1766763693701,0.04282435,2918.9,2918.0,0.9085]
[1766763693883,0.04282435,2918.9,2918.1,3.42688735]
[1766763695289,0.04282435,2918.9,2918.1,0.9085]
[1766763696811,1.04042435,2918.9,2918.0,0.002]
[1766763696980,0.9976,2918.9,2918.0,0.002]
[1766763697185,0.04282581,2918.8,2918.0,0.002]
[1766763698106,0.9976,2918.7,2918.0,0.002]
[1766763699783,0.04282875,2918.6,2918.0,0.002]
[1766763700314,0.18856,2918.9,2918.0,0.002]
[1766763700315,0.18856,2918.9,2918.0,0.9105]
[1766763700518,0.04282581,2918.8,2918.0,0.9105]
[1766763702012,0.18856,2918.9,2918.0,0.9105]
[1766763702304,0.18856,2918.9,2918.0,4.33744635]
[1766763702504,0.18856,2918.9,2918.1,0.9085]
[1766763703416,0.04282435,2918.9,2918.1,0.9085]
[1766763703608,1.00252435,2918.9,2918.1,0.9085]
[1766763704728,0.04282435,2918.9,2918.1,0.9085]
[1766763705687,0.04282435,2918.9,2918.1,4.33535725]
[1766763705886,0.04282435,2918.9,2918.2,0.9094]
[1766763706086,0.04282435,2918.9,2918.2,1.34322573]
[1766763706535,0.001,2919.1,2918.3,0.9094]
[1766763708251,0.04381701,2919.4,2918.3,0.9094]
[1766763708702,0.04381701,2919.4,2918.5,0.9094]
[1766763710195,0.887,2919.5,2918.5,0.9094]
[1766763710399,0.887,2919.5,2918.7,0.9094]
[1766763710634,0.887,2919.5,2918.8,6.852131]
[1766763710806,0.887,2919.5,2918.9,0.9094]
[1766763713438,0.04281701,2919.4,2918.9,0.9094]
[1766763714333,0.887,2919.5,2918.9,3.4259222]
[1766763714533,1.8631,2919.9,2919.0,0.9094]
[1766763714737,0.04281115,2919.8,2919.0,0.9094]
[1766763715106,1.8631,2919.9,2919.0,4.3352009]
[1766763715531,1.8631,2919.9,2919.0,0.9094]
[1766763715532,0.04281115,2919.8,2919.0,0.9094]
[1766763715718,1.20850226,2919.8,2918.9,0.68520974]
[1766763715916,0.9751,2919.5,2918.3,0.9094]
[1766763716118,1.01791701,2919.4,2918.3,0.9094]
[1766763718147,1.01791701,2919.4,2918.0,0.897]
[1766763718344,1.01791701,2919.4,2918.2,3.42675461]
[1766763718553,1.01791701,2919.4,2918.1,0.9094]
[1766763718721,1.01791701,2919.4,2918.0,0.897]
[1766763718722,0.9751,2919.4,2918.4,3.42645636]
[1766763718921,0.19059111,2919.8,2918.6,0.9094]
[1766763719150,0.9761,2919.9,2918.6,0.9094]
[1766763719521,0.001,2919.9,2918.6,0.9094]
[1766763720048,0.04380968,2919.9,2918.6,0.9094]
[1766763720556,0.04380968,2919.9,2918.8,0.9094]
[1766763720557,0.001,2919.9,2918.8,0.9094]
[1766763720764,0.04280528,2920.2,2919.0,0.9094]
[1766763720967,0.001,2920.3,2919.2,0.9094]
[1766763721170,0.001,2920.5,2919.2,0.9094]
[1766763721822,0.9751,2920.4,2919.2,0.9094]
[1766763722027,1.01790382,2920.3,2919.2,0.9094]
[1766763722251,1.01790382,2920.3,2918.8,0.9094]
[1766763722559,0.9751,2920.1,2918.9,0.18044]
[1766763722763,0.9751,2919.9,2918.8,0.9094]
[1766763722925,1.01791115,2919.8,2918.8,0.9094]
[1766763723432,0.04281115,2919.8,2918.8,0.9094]
[1766763723750,0.04380968,2919.9,2918.8,0.9094]
[1766763723953,0.04380968,2919.9,2918.9,0.9094]
[1766763724845,1.01890968,2919.9,2918.9,0.9094]
[1766763725246,1.01890968,2919.9,2918.8,3.42606333]
[1766763725766,1.01890968,2919.9,2918.7,4.32114132]
[1766763725979,1.01890968,2919.9,2918.6,0.895]
[1766763726273,1.01890968,2919.9,2918.6,4.32123283]
[1766763726483,1.01890968,2919.9,2918.7,0.3615687]
[1766763727490,1.01890968,2919.9,2918.7,1.2709687]
[1766763727690,1.01890968,2919.9,2918.7,0.9094]
[1766763728806,1.01890968,2919.9,2918.7,4.33555175]
[1766763729236,1.01890968,2919.9,2918.8,0.9094]
[1766763730240,0.001,2919.9,2918.8,0.9094]
[1766763731199,0.001,2919.9,2918.9,6.85189626]
[1766763731542,0.001,2919.9,2919.1,0.9094]
[1766763731827,0.001,2919.9,2919.1,0.895]
[1766763732006,0.001,2919.9,2919.2,0.9094]
[1766763732523,0.04280675,2920.1,2919.2,0.9094]
[1766763733031,0.9751,2920.0,2918.8,0.9094]
[1766763733319,0.9751,2919.8,2918.8,0.9094]
[1766763733518,0.9751,2919.6,2918.8,0.9094]
[1766763733692,0.04281555,2919.5,2918.8,0.9094]
[1766763734323,0.95441555,2919.5,2918.6,0.002]
[1766763734835,0.95441555,2919.5,2918.6,3.42829369]
[1766763735034,0.9116,2919.3,2918.0,0.9202]
[1766763735193,0.887,2919.6,2918.4,3.42652431]
[1766763735399,0.04281555,2919.5,2918.5,0.9182]
[1766763735627,0.95441555,2919.5,2918.5,0.9182]
[1766763736916,0.9116,2919.5,2918.5,0.9182]
[1766763737106,0.04281701,2919.4,2918.5,0.9182]
[1766763737311,0.9116,2919.4,2918.5,0.52398005]
[1766763737510,0.95441848,2919.3,2918.5,0.52398005]
[1766763737730,0.95441848,2919.3,2918.1,4.34505659]
[1766763737731,0.95441848,2919.3,2918.1,0.9182]
[1766763737904,0.95441848,2919.3,2918.1,1.8132]
[1766763738105,0.95441848,2919.3,2918.1,5.24004021]
[1766763738628,0.95441848,2919.3,2918.1,5.24008598]
[1766763738828,0.9116,2919.3,2918.3,3.42663392]
[1766763738999,0.04281995,2919.2,2918.4,0.34266339]
[1766763739534,0.95441995,2919.2,2918.4,0.34266339]
[1766763739728,0.95441995,2919.2,2918.1,0.895]
[1766763740028,0.95441995,2919.2,2918.5,0.002]
[1766763740233,0.95441995,2919.2,2918.0,0.002]
[1766763740407,0.95441995,2919.2,2918.0,4.32392959]
[1766763740603,0.95441995,2919.2,2918.0,0.897]
[1766763740804,0.95441995,2919.2,2918.0,4.50552164]
[1766763741335,0.95441995,2919.2,2918.0,1.07852]
[1766763741536,0.95441995,2919.2,2918.1,3.42687762]
[1766763741845,0.95441995,2919.2,2918.2,0.9182]
[1766763741846,0.9116,2919.2,2918.2,0.9182]
[1766763742008,0.9116,2919.6,2918.4,0.9182]
[1766763742209,0.9116,2919.4,2918.4,0.9182]
[1766763742409,0.9116,2919.2,2918.3,0.7771965]
[1766763742635,0.9116,2919.0,2918.1,1.8132]
[1766763742945,0.95442435,2918.9,2918.1,0.9182]
[1766763744333,0.95442435,2918.9,2918.1,4.34503937]
[1766763744901,0.04282435,2918.9,2918.2,0.9182]
[1766763745106,0.9116,2919.1,2918.2,0.9182]
[1766763745411,0.04282288,2919.0,2918.2,1.46055594]
[1766763745940,0.04282288,2919.0,2918.3,0.9182]
[1766763746140,0.9116,2919.5,2918.5,0.9182]
[1766763746305,0.04281701,2919.4,2918.5,0.9182]
[1766763746925,0.04281701,2919.4,2918.6,0.9182]
[1766763747305,0.04281701,2919.4,2918.7,0.03426182]
[1766763747535,0.96626535,2919.9,2918.8,0.9182]
[1766763747704,0.96626535,2919.9,2919.0,0.9182]
[1766763748318,0.9116,2919.9,2919.0,0.9182]
[1766763748504,0.9116,2919.9,2919.1,0.03425713]
[1766763749316,0.001,2919.4,2919.1,0.03425713]
[1766763749536,0.001,2919.4,2919.0,0.9182]
[1766763749732,0.001,2919.4,2919.1,0.03425713]
[1766763750131,0.9116,2919.9,2919.1,0.03425713]
[1766763750312,0.9116,2919.9,2919.1,0.47209722]
[1766763750729,0.9116,2919.9,2919.1,0.03425713]
[1766763753308,0.9116,2919.9,2918.6,3.42621]
[1766763753510,0.9116,2919.9,2918.7,0.895]
[1766763753705,0.9116,2919.9,2918.6,3.42621]
[1766763753910,0.9116,2919.9,2918.7,0.03426182]
[1766763754105,0.9116,2919.9,2918.8,0.43554718]
[1766763754348,0.9116,2919.9,2918.9,0.03425948]
[1766763754943,0.9116,2919.9,2918.8,0.03426065]
[1766763756748,0.9116,2919.9,2918.7,0.03426182]
[1766763756950,0.9116,2919.7,2918.5,0.43791044]
[1766763757256,0.9116,2919.7,2918.6,0.034263]
[1766763757424,0.9116,2919.7,2918.7,0.38985149]
[1766763757753,0.9116,2919.7,2918.8,0.03426065]
[1766763758296,0.9116,2919.7,2918.5,0.43791044]
[1766763758573,0.9116,2919.7,2918.6,0.034263]
[1766763758743,0.9116,2919.5,2918.4,0.03426535]
[1766763758949,0.9116,2919.4,2918.4,0.03426535]
[1766763759143,0.9116,2919.1,2918.0,0.002]
[1766763759349,0.9116,2918.9,2918.0,0.002]
[1766763759571,0.9116,2918.7,2918.0,0.03627004]
[1766763759765,0.03438392,2918.6,2918.0,0.03627004]
[1766763760165,0.9116,2918.7,2918.0,0.002]
[1766763760367,0.94598392,2918.6,2918.0,0.002]
[1766763760574,0.94598392,2918.6,2917.8,0.9182]
[1766763760575,0.05466535,2918.3,2916.9,0.002]
[1766763760760,0.9116,2917.8,2916.9,0.002]
[1766763760941,0.9116,2917.6,2916.9,0.01904169]
[1766763761142,0.9544449,2917.5,2916.9,0.002]
[1766763761341,0.04284049,2917.8,2916.9,0.002]
[1766763761602,0.95444049,2917.8,2916.9,0.002]
[1766763761874,1.10131058,2917.7,2916.9,0.002]
[1766763762172,0.95444343,2917.6,2916.9,0.002]
[1766763763948,0.18971058,2917.7,2916.9,0.002]
[1766763764271,0.98183609,2918.1,2917.0,0.9965]
[1766763764770,1.03650144,2918.1,2916.9,0.002]
[1766763764972,0.99366535,2917.9,2916.9,0.002]
[1766763765176,0.939,2917.7,2916.9,0.002]
[1766763765471,0.939,2917.5,2916.9,0.002]
[1766763765778,0.98184637,2917.4,2916.9,0.002]
[1766763766474,0.98184637,2917.4,2916.5,0.01704873]
[1766763766672,0.939,2917.4,2916.6,0.01705461]
[1766763766878,1.16454637,2917.4,2916.5,1.01355461]
[1766763767170,1.16454637,2917.4,2916.6,3.42864979]
[1766763767376,1.16454637,2917.4,2916.7,0.01705109]
[1766763767671,0.05466535,2917.9,2916.8,0.9965]
[1766763767879,0.04284049,2917.8,2917.0,0.9965]
[1766763768069,0.98184049,2917.8,2917.1,0.01703934]
[1766763768555,0.98184049,2917.8,2916.8,0.01703934]
[1766763768756,0.98184049,2917.8,2916.8,0.89362323]
[1766763769141,0.98184049,2917.8,2916.8,4.32202388]
[1766763770261,0.98184049,2917.8,2916.8,5.23012388]
[1766763771257,0.98184049,2917.8,2916.8,1.80172323]
[1766763771482,0.98184049,2917.8,2916.8,5.2301208]
[1766763771941,0.98184049,2917.8,2916.8,0.92513934]
[1766763772876,0.98184049,2917.8,2916.8,0.92713934]
[1766763773081,0.98184049,2917.8,2916.8,4.3555534]
[1766763773950,0.98184049,2917.8,2916.9,0.9081]
[1766763774271,0.98184049,2917.8,2917.0,0.92514227]
[1766763774468,0.98016535,2918.1,2917.1,0.9081]
[1766763774777,0.98016535,2918.1,2917.2,0.92513405]
[1766763774778,0.04283755,2918.0,2917.2,0.92513405]
[1766763775349,0.04283755,2918.0,2917.4,0.9081]
[1766763775549,0.04283609,2918.1,2917.5,0.01702994]
[1766763775846,0.9255,2918.4,2917.5,0.92512994]
[1766763776045,0.18135,2918.4,2917.6,0.9081]
[1766763776249,0.888,2918.6,2917.7,0.92512172]
[1766763776458,0.04283022,2918.5,2917.7,0.92512172]
[1766763777069,0.04283022,2918.5,2917.7,0.92511937]
[1766763777469,0.04283022,2918.5,2917.7,0.9081]
[1766763777791,0.9255,2918.4,2917.1,3.42803967]
[1766763777953,0.96833315,2918.3,2917.2,1.94374368]
[1766763778154,0.96833315,2918.3,2917.4,4.05579764]
[1766763778366,0.09749557,2918.5,2917.7,0.6281]
[1766763778571,0.09749557,2918.5,2917.8,0.64511878]
[1766763779068,0.9255,2918.4,2917.8,0.01701878]
[1766763779270,0.9255,2918.4,2917.7,0.01701878]
[1766763779476,0.96833168,2918.4,2917.7,0.36146105]
[1766763779670,0.96833168,2918.4,2917.7,0.01701878]
[1766763779874,0.96833168,2918.4,2917.6,0.01902054]
[1766763780386,0.96833168,2918.4,2917.2,3.84852266]
[1766763780962,0.96833168,2918.4,2917.2,0.42064368]
[1766763781165,0.9255,2918.2,2916.6,4.05865731]
[1766763781469,0.9255,2918.0,2916.8,0.01903874]
[1766763781660,0.9255,2917.8,2916.8,0.01903874]
[1766763781986,0.9255,2917.6,2916.8,0.01903874]
[1766763782360,0.888,2917.9,2916.9,0.6301]
[1766763782561,1.8135,2917.9,2917.0,0.01704109]
[1766763782777,0.04284049,2917.8,2917.0,0.01704109]
[1766763783173,1.8135,2917.9,2917.0,0.64714109]
[1766763783377,0.9255,2918.2,2917.1,7.48622422]
[1766763783578,0.04283609,2918.1,2917.2,0.76735939]
[1766763783780,0.9255,2918.2,2917.3,0.6301]
[1766763784117,0.9255,2918.0,2917.2,0.75032653]
[1766763784271,0.9255,2918.0,2917.3,0.01703346]
[1766763784669,0.96833902,2917.9,2917.3,0.01703346]
[1766763785184,0.9255,2917.9,2917.3,0.01703346]
[1766763785496,0.9255,2917.9,2917.3,3.44483879]
[1766763785665,0.04284049,2917.8,2917.3,0.01703346]
[1766763785866,0.9255,2917.7,2916.8,4.18099775]
[1766763786060,0.9255,2918.3,2917.3,3.42779016]
[1766763786261,0.9255,2918.3,2917.4,0.01702818]
[1766763786462,0.96833462,2918.2,2917.4,0.01702818]
[1766763786962,0.96833462,2918.2,2917.2,4.95299493]